bitfinex/quotes_ETHUSD_20220120
["timestamp","ask_amount","ask_price","bid_price","bid_amount"]
[1642667442427,0.00113685,3126.7,3126.6,0.91199374]
[1642667445779,0.12903685,3126.7,3126.6,0.91199374]
[1642667445980,0.00113685,3126.7,3126.6,0.91199374]
[1642667447324,0.00113685,3126.7,3126.6,3.63833431]
[1642667449734,3.20113685,3126.7,3126.6,3.63833431]
[1642667450876,3.20113685,3126.7,3126.6,5.26945514]
[1642667455528,3.20113685,3126.7,3126.6,3.63833431]
[1642667459384,3.20113685,3126.7,3126.6,3.65465431]
[1642667462928,3.20113685,3126.7,3126.6,5.28652936]
[1642667463328,3.20113685,3126.7,3126.6,5.28558913]
[1642667464329,3.20113685,3126.7,3126.6,5.26926913]
[1642667465434,3.20113685,3126.7,3126.6,3.63733339]
[1642667472437,3.20113685,3126.7,3126.6,6.08401464]
[1642667472638,3.2,3126.7,3126.6,6.08401464]
[1642667474779,3.2,3126.7,3126.6,3.63733339]
[1642667475179,3.2,3126.7,3126.6,6.08913883]
[1642667475380,3.2,3126.7,3126.6,3.36279826]
[1642667475583,3.2,3126.7,3126.6,6.08913883]
[1642667477423,3.2,3126.7,3126.6,3.63733339]
[1642667477724,3.2,3126.7,3126.6,6.64762681]
[1642667477924,0.1279,3127.3,3126.7,6.06146795]
[1642667478124,4.1505515,3127.5,3127.1,1.63444645]
[1642667478429,4.1505515,3127.5,3127.2,2.86744669]
[1642667478623,4.1505515,3127.5,3127.3,2.72634057]
[1642667479024,4.1505515,3127.5,3127.2,1.63444645]
[1642667479222,4.1505515,3127.5,3127.3,2.62208677]
[1642667479423,4.1505515,3127.5,3127.4,2.72634057]
[1642667479826,4.15623574,3127.5,3127.4,2.72634057]
[1642667480026,4.11991344,3127.5,3127.4,2.72634057]
[1642667480630,3.99201344,3127.5,3127.4,2.72634057]
[1642667481476,3.99201344,3127.5,3127.3,4.20097636]
[1642667481677,3.99201344,3127.5,3127.4,2.72634057]
[1642667481678,0.00568424,3127.5,3127.4,2.72634057]
[1642667481878,0.1278,3127.8,3127.4,2.72634057]
[1642667482278,0.00682108,3127.7,3127.3,3.84988224]
[1642667482477,0.00682108,3127.7,3127.4,2.72491601]
[1642667482678,0.00625266,3127.6,3127.4,2.72491601]
[1642667483078,0.00568424,3127.5,3127.4,2.72491601]
[1642667485831,0.00568424,3127.5,3127.4,5.66275525]
[1642667486233,0.00568424,3127.5,3127.4,2.72491601]
[1642667489081,0.00568424,3127.5,3127.3,5.83399825]
[1642667489282,0.00568424,3127.5,3127.4,2.72491601]
[1642667489483,0.7996,3127.8,3127.4,2.72491601]
[1642667489883,0.00682108,3127.7,3127.4,2.72491601]
[1642667490083,0.00682108,3127.7,3127.5,2.72491601]
[1642667490281,0.00625266,3127.6,3127.1,1.63444645]
[1642667490481,0.00625266,3127.6,3127.1,3.06354362]
[1642667490684,0.00568424,3127.5,3127.1,3.06354362]
[1642667491082,0.00511581,3127.4,3127.1,3.06354362]
[1642667491585,0.00454739,3127.3,3127.1,3.06354362]
[1642667492025,1.0996,3127.8,3127.1,3.06354362]
[1642667492026,0.00397897,3127.2,3127.1,3.06354362]
[1642667492727,0.00397897,3127.2,3127.1,6.22351086]
[1642667492927,0.00397897,3127.2,3127.1,4.58906441]
[1642667494132,0.00397897,3127.2,3127.1,4.52584104]
[1642667494528,0.00397897,3127.2,3127.1,1.62967032]
[1642667495132,0.00397897,3127.2,3127.1,4.57967032]
[1642667495432,0.00397897,3127.2,3127.1,5.68009864]
[1642667495635,0.00397897,3127.2,3127.1,6.82254858]
[1642667495881,0.00397897,3127.2,3127.1,5.72212026]
[1642667496080,0.00397897,3127.2,3127.1,4.09244994]
[1642667496283,0.00397897,3127.2,3127.1,5.72212026]
[1642667496480,0.00397897,3127.2,3127.1,4.09244994]
[1642667496683,0.00397897,3127.2,3127.1,5.72210933]
[1642667497084,0.00397897,3127.2,3127.1,4.09244994]
[1642667497286,0.00397897,3127.2,3127.1,6.88483057]
[1642667497684,0.00397897,3127.2,3127.1,5.72203172]
[1642667498286,0.00397897,3127.2,3127.1,7.29498795]
[1642667498788,7.87288,3128.2,3127.2,4.90795794]
[1642667498789,0.47951074,3128.1,3127.2,4.90795794]
[1642667498987,0.47951074,3128.1,3127.5,1.62933101]
[1642667499190,0.00454738,3128.0,3127.6,4.58596188]
[1642667499387,0.00454738,3128.0,3127.7,1.51071406]
[1642667499633,0.00397896,3127.9,3127.7,1.51071406]
[1642667499934,0.47951074,3128.1,3127.7,6.29004507]
[1642667499935,0.00341054,3127.8,3127.7,6.29004507]
[1642667500334,0.00341054,3127.8,3127.7,9.45977535]
[1642667500636,0.00341054,3127.8,3127.7,9.4465046]
[1642667500835,0.00341054,3127.8,3127.7,6.44984507]
[1642667501236,0.00341054,3127.8,3127.7,4.82051406]
[1642667501435,0.00341054,3127.8,3127.7,9.354036]
[1642667501636,0.00341054,3127.8,3127.7,4.93913101]
[1642667501837,0.00341054,3127.8,3127.7,4.77933101]
[1642667502235,0.00341054,3127.8,3127.7,3.15]
[1642667503036,0.00341054,3127.8,3127.7,4.9]
[1642667504282,0.00341054,3127.8,3127.7,3.15]
[1642667504882,0.00341054,3127.8,3127.7,4.9]
[1642667505283,0.00341054,3127.8,3127.7,7.62466921]
[1642667505883,0.00341054,3127.8,3127.7,10.64262982]
[1642667506482,0.00341054,3127.8,3127.7,10.80242982]
[1642667506683,0.00341054,3127.8,3127.7,8.9454037]
[1642667507136,0.00341054,3127.8,3127.7,11.83225857]
[1642667508034,0.00341054,3127.8,3127.7,10.08225857]
[1642667508935,0.00341054,3127.8,3127.7,7.6552037]
[1642667509141,0.00341054,3127.8,3127.7,10.8124548]
[1642667509338,0.00341054,3127.8,3127.7,7.6552037]
[1642667510040,0.00341054,3127.8,3127.7,16.52915983]
[1642667510241,0.00341054,3127.8,3127.7,13.37190873]
[1642667510884,0.00341054,3127.8,3127.7,11.74257772]
[1642667511286,0.00341054,3127.8,3127.7,14.94658641]
[1642667511485,0.00341054,3127.8,3127.7,16.5727808]
[1642667512086,0.00341054,3127.8,3127.7,16.83988641]
[1642667512287,0.00341054,3127.8,3127.7,17.06058641]
[1642667512493,1.054e-05,3127.8,3127.7,18.18384844]
[1642667512690,1.054e-05,3127.8,3127.7,15.73985192]
[1642667513088,1.054e-05,3127.8,3127.7,19.00488768]
[1642667513288,3.3894,3129.4,3127.8,23.55078946]
[1642667513488,3.3894,3129.4,3129.2,1.09592066]
[1642667513689,5.0137,3129.7,3129.3,4.161062]
[1642667513889,3.861,3129.7,3129.4,2.72466921]
[1642667514088,0.0096632,3129.5,3129.4,2.72466921]
[1642667514288,0.0096632,3129.5,3129.3,1.43639279]
[1642667514527,0.01136847,3129.8,3129.3,1.43639279]
[1642667514733,0.00909477,3129.4,3129.3,1.43639279]
[1642667514930,8.24689,3129.9,3129.3,4.16025157]
[1642667514931,0.01080004,3129.7,3129.3,4.16025157]
[1642667515134,0.00909477,3129.4,3129.3,1.43639279]
[1642667515331,0.01023162,3129.6,3129.3,1.43639279]
[1642667515631,0.00909477,3129.4,3129.3,1.43639279]
[1642667515832,0.01136847,3129.8,3129.3,4.1602294]
[1642667516036,0.92689,3129.9,3129.4,2.72383661]
[1642667516235,0.92689,3129.9,3129.3,1.43639279]
[1642667516434,0.01136847,3129.8,3129.4,2.7237639]
[1642667516835,0.01136847,3129.8,3129.3,4.3386664]
[1642667516836,0.01080004,3129.7,3129.3,4.64563296]
[1642667517037,0.01080004,3129.7,3129.4,2.72367937]
[1642667517237,0.01023162,3129.6,3129.4,2.72367937]
[1642667517739,0.0096632,3129.5,3129.4,2.72367937]
[1642667518383,0.0096632,3129.5,3129.2,1.1228]
[1642667518583,0.0096632,3129.5,3129.1,0.1278]
[1642667518782,0.00909477,3129.4,3129.2,2.72380488]
[1642667519183,2.70275203,3130.1,3129.2,2.72380488]
[1642667519184,0.00852635,3129.3,3129.2,2.72380488]
[1642667520687,0.00852635,3129.3,3128.5,0.1278]
[1642667520886,0.00852635,3129.3,3128.6,2.72409642]
[1642667520887,0.1278,3129.2,3128.6,2.72409642]
[1642667521086,0.1278,3129.2,3128.7,2.72409642]
[1642667521087,0.13575793,3129.2,3128.7,2.72409642]
[1642667521289,0.0073895,3129.1,3128.8,2.72409642]
[1642667521490,0.0073895,3129.1,3128.3,0.1278]
[1642667521688,0.00682108,3129.0,3128.4,2.72415221]
[1642667522132,0.00625266,3128.9,3128.4,2.72415221]
[1642667522534,0.00568423,3128.8,3128.4,2.88395221]
[1642667522731,0.00568423,3128.8,3128.5,2.85195221]
[1642667522936,0.00511581,3128.7,3128.6,2.72415221]
[1642667523132,0.00511581,3128.7,3128.5,2.72415221]
[1642667523431,0.92705,3129.2,3128.6,2.72415221]
[1642667523633,0.92705,3129.2,3128.4,0.2876]
[1642667523634,0.92705,3129.2,3128.7,2.72415221]
[1642667523834,0.0073895,3129.1,3128.8,2.72415221]
[1642667524033,0.0073895,3129.1,3128.9,2.72415221]
[1642667524232,0.00682108,3129.0,3128.4,0.1278]
[1642667524432,0.00682108,3129.0,3128.5,2.72414266]
[1642667524636,0.00625266,3128.9,3128.5,2.72414266]
[1642667525138,0.00568423,3128.8,3128.5,2.72414266]
[1642667525544,0.00511581,3128.7,3128.5,2.72414266]
[1642667525981,0.00454739,3128.6,3128.5,2.72414266]
[1642667527786,0.00454739,3128.6,3128.4,2.72414266]
[1642667527987,0.00454739,3128.6,3128.5,2.72414266]
[1642667528289,0.79926,3128.9,3128.5,2.72414266]
[1642667528488,0.79926,3128.9,3128.6,2.72414266]
[1642667528686,0.00568423,3128.8,3128.7,2.72414266]
[1642667528887,0.00568423,3128.8,3128.4,2.72414266]
[1642667529087,0.00568423,3128.8,3128.5,2.72414266]
[1642667529287,0.00511581,3128.7,3128.6,5.62513671]
[1642667529534,0.00511581,3128.7,3128.6,2.72414266]
[1642667531743,0.00511581,3128.7,3128.6,5.7957153]
[1642667532040,0.00511581,3128.7,3128.6,5.7755656]
[1642667532241,0.00511581,3128.7,3128.6,4.01174266]
[1642667532442,0.00511581,3128.7,3128.6,4.31174266]
[1642667532641,0.00511581,3128.7,3128.6,8.46724266]
[1642667532842,0.00511581,3128.7,3128.6,9.46724266]
[1642667533484,3.1572511,3129.9,3128.7,4.91023162]
[1642667533681,3.1572511,3129.9,3128.8,2.72414266]
[1642667533881,0.00511581,3129.6,3128.8,3.72414266]
[1642667534081,0.00511581,3129.6,3128.9,2.72414266]
[1642667534382,0.00454739,3129.5,3129.0,0.1598]
[1642667534582,0.00454739,3129.5,3129.1,2.72414266]
[1642667534785,0.00397896,3129.4,3129.3,1.24053552]
[1642667534984,0.00397896,3129.4,3129.3,3.96467818]
[1642667536683,0.00397896,3129.4,3129.3,3.96428542]
[1642667540793,0.00397896,3129.4,3129.3,2.7237499]
[1642667540984,0.00397896,3129.4,3129.2,2.7237499]
[1642667541188,0.00397896,3129.4,3129.1,0.1278]
[1642667541189,0.13177896,3129.4,3129.1,0.1278]
[1642667541389,0.00341054,3129.3,3129.1,0.1278]
[1642667541589,0.00341054,3129.3,3129.2,2.7240241]
[1642667541788,3.38837158,3129.5,3129.2,2.7240241]
[1642667541993,3.38837158,3129.5,3129.0,2.7240241]
[1642667542188,3.38837158,3129.5,3128.4,0.1278]
[1642667542189,0.00397896,3129.4,3129.1,2.72402342]
[1642667542389,0.92707,3129.3,3128.4,0.1278]
[1642667542588,2.52900054,3129.3,3128.8,2.72409868]
[1642667542789,0.00284212,3129.2,3128.8,2.72409868]
[1642667542989,0.00284212,3129.2,3128.9,1.29000584]
[1642667543191,0.00227369,3129.1,3129.0,2.72409868]
[1642667545439,0.00227369,3129.1,3129.0,6.02409868]
[1642667545839,0.00227369,3129.1,3129.0,2.72409868]
[1642667547039,0.00227369,3129.1,3129.0,3.88389868]
[1642667547240,0.00227369,3129.1,3129.0,4.56189868]
[1642667547445,0.00227369,3129.1,3129.0,11.0984293]
[1642667548294,3.10952479,3130.2,3129.1,4.9]
[1642667548493,3.10952479,3130.2,3129.2,2.85189868]
[1642667548693,3.06520903,3130.2,3129.4,3.4]
[1642667548893,3.06520903,3130.2,3129.5,2.72409868]
[1642667549096,3.06520903,3130.2,3129.6,2.72409868]
[1642667549295,0.1277,3130.1,3129.7,2.72409868]
[1642667549493,0.1277,3130.1,3129.8,2.72409868]
[1642667549695,8.4878849,3130.3,3129.8,2.72409868]
[1642667549696,0.1277,3130.2,3129.9,2.72409868]
[1642667549896,0.1277,3130.0,3129.9,0.00113685]
[1642667550196,0.1277,3130.2,3129.9,0.00113685]
[1642667550596,0.1277,3130.2,3129.4,0.00397897]
[1642667550796,0.1277,3130.2,3129.5,2.72356768]
[1642667551196,0.1277,3130.2,3129.6,0.00284212]
[1642667551395,0.1277,3130.2,3129.6,2.7264098]
[1642667551603,0.1277,3130.2,3129.7,2.72356768]
[1642667551798,0.1277,3130.2,3129.8,2.72356768]
[1642667552029,0.1277,3130.2,3129.9,2.72356768]
[1642667552230,0.1277,3130.2,3129.9,0.00113685]
[1642667552633,4.49432642,3130.5,3129.8,2.92593806]
[1642667552832,4.49432642,3130.5,3129.9,2.72353806]
[1642667553033,0.00113684,3130.3,3129.9,2.72467491]
[1642667553731,0.00113684,3130.3,3129.9,3.99313235]
[1642667553931,0.00113684,3130.3,3130.0,2.72353806]
[1642667560762,1.0894456,3130.4,3130.0,2.72353806]
[1642667561167,1.0894456,3130.4,3130.1,0.00113685]
[1642667561763,0.79888,3130.4,3130.1,0.00113685]
[1642667562564,0.1277,3130.3,3130.1,0.00113685]
[1642667562763,0.1277,3130.3,3129.5,3.50649438]
[1642667562764,0.10955552,3130.3,3129.8,2.72638017]
[1642667562964,0.10955552,3130.3,3129.9,2.72353806]
[1642667563164,0.10955552,3130.3,3130.0,2.72353806]
[1642667563389,0.10955552,3130.3,3130.1,2.72353806]
[1642667563589,0.10955552,3130.3,3130.1,0.00113684]
[1642667564088,0.10955552,3130.3,3129.8,2.72638017]
[1642667564493,0.10955552,3130.3,3129.9,0.00227369]
[1642667565495,0.10955552,3130.3,3129.9,2.72581175]
[1642667565695,0.10955552,3130.3,3129.9,0.00227369]
[1642667565696,3.55101837,3130.3,3129.9,0.00227369]
[1642667565895,3.55101837,3130.3,3130.0,0.00170527]
[1642667565896,5.99818,3130.2,3130.0,0.00170527]
[1642667566099,4.17242711,3130.1,3129.6,0.00397896]
[1642667566298,1.5981,3130.0,3129.6,0.00397896]
[1642667566499,3.06150214,3129.9,3129.6,0.00397896]
[1642667566698,0.3,3129.9,3129.6,0.00397896]
[1642667567140,0.3,3129.9,3129.3,0.00568423]
[1642667567437,0.3,3129.9,3129.2,0.00625265]
[1642667567843,3.14281717,3129.9,3129.2,0.00625265]
[1642667569051,0.3,3129.9,3129.2,0.00625265]
[1642667569444,0.3,3129.9,3129.4,0.03045815]
[1642667569844,0.3,3129.9,3129.5,0.00454738]
[1642667570046,0.4278,3129.9,3129.5,0.00454738]
[1642667570345,0.1278,3129.9,3129.5,0.00454738]
[1642667570545,3.27176226,3129.9,3129.5,0.00454738]
[1642667571791,6.47176226,3129.9,3129.5,0.00454738]
[1642667573192,3.6278,3129.9,3129.5,0.00454738]
[1642667574962,3.6278,3129.9,3129.6,0.00397896]
[1642667575356,3.6278,3129.9,3129.3,1.63151485]
[1642667575559,3.6278,3129.9,3129.4,0.00511581]
[1642667575959,3.6278,3129.9,3129.2,1.63208327]
[1642667576158,3.6278,3129.9,3129.4,0.00511581]
[1642667576358,3.6278,3129.9,3129.3,0.00568423]
[1642667578787,3.3278,3129.9,3129.3,0.00568423]
[1642667579388,3.3278,3129.9,3129.3,1.63151485]
[1642667579592,3.2,3129.9,3129.3,1.63151485]
[1642667579791,3.2,3129.9,3129.4,0.00511581]
[1642667580196,3.2,3129.9,3129.3,0.00568423]
[1642667580794,3.2,3129.9,3129.3,1.63151485]
[1642667581094,3.2,3129.9,3129.4,0.16491581]
[1642667581294,3.2,3129.9,3129.5,0.1278]
[1642667581492,3.2,3129.9,3129.5,0.00454738]
[1642667581694,3.2,3129.9,3129.6,0.00397896]
[1642667581896,3.2,3129.9,3129.5,0.00454738]
[1642667583377,3.2,3129.9,3129.5,1.95684613]
[1642667583579,3.2,3129.9,3129.5,0.00454738]
[1642667583783,3.2,3129.9,3129.6,0.00397896]
[1642667583983,3.2,3129.9,3129.6,1.1191]
[1642667584184,3.2,3129.9,3129.6,1.12307896]
[1642667584385,3.2,3129.9,3129.7,0.00341054]
[1642667585686,3.2,3129.9,3129.6,0.00397896]
[1642667586095,3.2,3129.9,3129.7,2.7232971]
[1642667586296,3.2,3129.9,3129.8,2.7232971]
[1642667586497,3.2,3129.9,3129.8,2.72613921]
[1642667586899,3.5,3129.9,3129.8,0.00284211]
[1642667587297,3.5,3129.9,3129.7,2.7232971]
[1642667587497,3.5,3129.9,3129.7,2.72670764]
[1642667587698,3.5,3129.9,3129.8,2.72520441]
[1642667587906,3.5,3129.9,3129.8,0.00190731]
[1642667588300,3.5,3129.9,3129.7,2.7232971]
[1642667588499,3.5,3129.9,3129.8,2.7232971]
[1642667588699,3.5,3129.9,3129.8,0.00190731]
[1642667588901,3.2,3129.9,3129.8,0.00190731]
[1642667589099,3.2,3129.9,3129.4,4.35330873]
[1642667589304,3.2,3129.9,3129.5,2.7232971]
[1642667589563,3.2,3129.9,3129.6,2.7232971]
[1642667589759,3.2,3129.9,3129.6,2.72634126]
[1642667589958,3.2,3129.9,3129.7,2.7232971]
[1642667590259,3.2,3129.9,3129.8,2.72520441]
[1642667590459,3.2,3129.9,3129.8,0.00190731]
[1642667590859,3.2,3129.9,3129.5,4.3527403]
[1642667591058,3.2,3129.9,3129.6,2.7232971]
[1642667591259,3.2,3129.9,3129.7,2.7232971]
[1642667591458,3.2,3129.9,3129.8,2.7232971]
[1642667591658,3.2,3129.9,3129.8,2.72520441]
[1642667591863,3.2,3129.9,3129.8,0.00190731]
[1642667592261,3.2,3129.9,3129.6,2.72634126]
[1642667592461,3.2,3129.9,3129.6,4.35217188]
[1642667592661,3.2,3129.9,3129.7,2.72577284]
[1642667592861,3.2,3129.9,3129.8,2.7232971]
[1642667593063,3.2,3129.9,3129.8,2.72520441]
[1642667594101,3.2,3129.9,3129.8,0.00190731]
[1642667594504,3.2,3129.9,3129.7,0.00247574]
[1642667597150,6.90837213,3129.8,3129.7,0.00247574]
[1642667597548,4.0778,3129.8,3129.7,2.7232971]
[1642667597747,4.0778,3129.8,3129.7,0.00247574]
[1642667598150,4.0778,3129.8,3129.5,0.00361258]
[1642667599352,3.16950698,3129.7,3129.5,0.00361258]
[1642667599552,0.1278,3129.6,3129.5,0.00361258]
[1642667600996,0.1278,3129.7,3129.5,0.00361258]
[1642667601591,0.92695,3129.7,3129.5,0.00361258]
[1642667601795,0.1278,3129.7,3129.5,0.00361258]
[1642667602295,0.3,3129.8,3129.5,0.00361258]
[1642667602296,0.766,3129.8,3129.5,0.00361258]
[1642667602695,0.466,3129.8,3129.5,0.00361258]
[1642667603695,0.466,3129.8,3129.5,2.72690968]
[1642667603897,0.466,3129.8,3129.6,2.7232971]
[1642667604095,0.466,3129.8,3129.7,2.7232971]
[1642667604296,0.466,3129.8,3129.7,2.72713917]
[1642667605149,0.466,3129.8,3129.7,0.00384207]
[1642667605351,0.466,3129.8,3129.7,2.72713917]
[1642667605551,0.466,3129.8,3129.7,0.00384207]
[1642667605750,0.466,3129.8,3129.7,2.72713917]
[1642667605955,0.466,3129.8,3129.7,0.00384207]
[1642667606157,0.466,3129.8,3129.7,2.72713917]
[1642667606353,7.22166962,3129.9,3129.7,2.72713917]
[1642667606553,7.22166962,3129.9,3129.8,2.7232971]
[1642667606754,7.34946962,3129.9,3129.8,2.72657072]
[1642667606954,7.22166962,3129.9,3129.8,2.72657072]
[1642667607155,7.22166962,3129.9,3129.8,0.00327362]
[1642667607353,7.22166962,3129.9,3129.8,2.72657072]
[1642667607754,7.22166962,3129.9,3129.8,0.00327362]
[1642667608155,7.22166962,3129.9,3129.8,0.0032736]
[1642667609896,7.22166962,3129.9,3129.8,0.00241455]
[1642667612248,7.22166962,3129.9,3129.8,2.72571165]
[1642667612450,7.22166962,3129.9,3129.8,0.00241455]
[1642667614057,8.02076962,3129.9,3129.8,0.00241455]
[1642667614252,11.12887394,3129.9,3129.8,0.00241455]
[1642667614454,11.12887394,3129.9,3129.8,2.72571165]
[1642667614455,11.30098461,3129.9,3129.8,2.72571165]
[1642667614656,11.30098461,3129.9,3129.8,0.00241455]
[1642667614857,11.30098461,3129.9,3129.8,2.72571165]
[1642667615157,11.01240314,3129.9,3129.8,0.00241455]
[1642667619544,8.14856962,3129.9,3129.8,0.00241455]
[1642667619948,8.02076962,3129.9,3129.8,0.00241455]
[1642667620349,7.22166962,3129.9,3129.8,0.00241455]
[1642667622452,7.22166962,3129.9,3129.8,2.72571165]
[1642667622652,7.22166962,3129.9,3129.8,0.00241455]
[1642667623697,7.22166962,3129.9,3129.8,0.00241453]
[1642667626101,10.06618049,3129.9,3129.8,0.00241453]
[1642667626701,7.34946962,3129.9,3129.8,0.00241453]
[1642667627348,7.22166962,3129.9,3129.8,0.00241453]
[1642667627951,7.22166962,3129.9,3129.8,2.72571163]
[1642667628249,7.22166962,3129.9,3129.8,0.00241453]
[1642667632399,7.21973799,3129.9,3129.8,0.00241453]
[1642667634401,7.21973799,3129.9,3129.8,2.72571163]
[1642667634853,7.21973799,3129.9,3129.8,0.00241453]
[1642667635049,7.21973799,3129.9,3129.8,0.30241453]
[1642667635250,7.21973799,3129.9,3129.8,3.02571163]
[1642667635450,7.21973799,3129.9,3129.8,2.72571163]
[1642667635651,7.21973799,3129.9,3129.8,0.00241453]
[1642667635850,7.21973799,3129.9,3129.8,0.00241451]
[1642667639399,7.21973799,3129.9,3129.8,2.72571161]
[1642667639605,7.21973799,3129.9,3129.8,0.00241451]
[1642667640203,7.21973799,3129.9,3129.8,0.00136625]
[1642667640405,7.21973799,3129.9,3129.8,2.72466335]
[1642667641007,7.21973799,3129.9,3129.8,0.30136625]
[1642667641406,7.21973799,3129.9,3129.8,2.72466335]
[1642667642250,7.21973799,3129.9,3129.8,2.72466333]
[1642667642451,7.21973799,3129.9,3129.8,3.02466333]
[1642667644858,7.21973799,3129.9,3129.8,2.72466331]
[1642667645057,7.21973799,3129.9,3129.8,0.00136621]
[1642667646699,3.19806837,3129.9,3129.8,0.75446621]
[1642667646903,3.19806837,3129.9,3129.8,4.28773156]
[1642667647200,3.19806837,3129.9,3129.8,3.77776331]
[1642667647399,3.19806837,3129.9,3129.8,6.37776331]
[1642667647600,3.19806837,3129.9,3129.8,5.17860258]
[1642667649545,3.19806837,3129.9,3129.8,6.80914556]
[1642667649748,3.19806837,3129.9,3129.8,5.17860249]
[1642667650354,3.19806837,3129.9,3129.8,5.17860247]
[1642667653395,3.19806837,3129.9,3129.8,5.17860242]
[1642667654096,3.19806837,3129.9,3129.8,7.61734835]
[1642667654700,3.19806837,3129.9,3129.8,5.17860242]
[1642667654900,3.19806837,3129.9,3129.8,5.1786024]
[1642667655100,3.19806837,3129.9,3129.8,5.1776136]
[1642667655303,3.19806837,3129.9,3129.8,7.61635953]
[1642667655603,3.19806837,3129.9,3129.8,5.1776136]
[1642667656201,0.1278,3130.6,3129.9,6.10844674]
[1642667656402,0.1278,3130.6,3130.1,1.628668]
[1642667656601,3.711,3130.9,3130.1,1.628668]
[1642667656602,0.0029307,3130.5,3130.1,1.93003401]
[1642667656802,0.0029307,3130.5,3130.1,4.65333111]
[1642667657044,0.00236228,3130.4,3130.2,2.7232971]
[1642667657244,0.00236228,3130.4,3130.2,2.72466311]
[1642667657444,0.00179385,3130.3,3130.2,2.72466311]
[1642667658250,0.00179385,3130.3,3130.2,5.27466311]
[1642667658650,0.00179385,3130.3,3130.2,8.20902477]
[1642667659250,0.00179385,3130.3,3130.2,9.83769277]
[1642667660354,0.00179385,3130.3,3130.2,8.20902477]
[1642667661013,0.00179385,3130.3,3130.2,9.83769277]
[1642667661215,0.00179385,3130.3,3130.2,5.65902477]
[1642667664319,0.00179385,3130.3,3130.2,5.81882477]
[1642667664756,0.00179385,3130.3,3130.2,6.91655585]
[1642667667661,3.20179385,3130.3,3130.2,6.91655585]
[1642667667862,3.20179385,3130.3,3130.2,9.54522385]
[1642667668062,0.1277,3131.2,3130.3,5.25]
[1642667668310,4.02163777,3131.3,3130.4,6.09709465]
[1642667668501,4.02101775,3131.4,3130.5,2.7232971]
[1642667668502,0.00454739,3131.1,3130.5,2.7232971]
[1642667668705,0.00454739,3131.1,3130.6,3.1601673]
[1642667668902,0.00397897,3131.0,3130.7,2.7232971]
[1642667669102,0.00397897,3131.0,3130.7,2.72466295]
[1642667669402,0.00341054,3130.9,3130.8,0.3]
[1642667669601,0.00341054,3130.9,3130.8,7.47466295]
[1642667669802,0.00341054,3130.9,3130.8,8.98020373]
[1642667670201,0.00341054,3130.9,3130.8,8.98020371]
[1642667670803,0.00341054,3130.9,3130.8,4.53020371]
[1642667671208,0.00341054,3130.9,3130.8,4.53020369]
[1642667672250,0.00341054,3130.9,3130.8,4.53020367]
[1642667673259,0.00341054,3130.9,3130.8,7.98561362]
[1642667673861,0.00341054,3130.9,3130.8,8.11331362]
[1642667675362,0.00341054,3130.9,3130.8,9.11331362]
[1642667675996,0.00341054,3130.9,3130.8,9.11331354]
[1642667676599,0.1277,3132.1,3130.9,4.95]
[1642667676800,0.79848,3132.2,3131.2,0.7984415]
[1642667677003,0.00511582,3131.8,3131.3,5.76853676]
[1642667677200,0.00511582,3131.8,3131.4,5.65873685]
[1642667677400,0.00454739,3131.7,3131.5,2.7232971]
[1642667677599,0.00454739,3131.7,3131.6,2.93337999]
[1642667677800,0.1277,3132.1,3131.6,2.72528318]
[1642667678000,4.48940778,3132.3,3131.8,1.39743915]
[1642667678202,0.00625266,3132.0,3131.8,1.39942521]
[1642667678406,0.00532477,3132.0,3131.8,1.69942521]
[1642667678606,0.00475635,3131.9,3131.8,0.00198606]
[1642667679851,0.00475635,3131.9,3131.8,1.38444352]
[1642667680054,0.00475635,3131.9,3131.8,1.68444352]
[1642667680251,0.00475635,3131.9,3131.8,1.90454352]
[1642667680650,0.00475635,3131.9,3131.8,4.91370207]
[1642667680852,0.00475635,3131.9,3131.8,4.78600207]
[1642667681053,0.00475635,3131.9,3131.8,4.78600205]
[1642667681559,0.00475635,3131.9,3131.8,4.62620205]
[1642667681751,0.00475635,3131.9,3131.8,4.78600205]
[1642667683054,0.00475635,3131.9,3131.8,3.40354459]
[1642667683303,0.00475635,3131.9,3131.8,3.02364459]
[1642667683897,0.00475635,3131.9,3131.8,3.02364451]
[1642667686808,0.00475635,3131.9,3131.8,2.72364451]
[1642667687051,0.00475635,3131.9,3131.8,0.00198594]
[1642667687252,0.00475635,3131.9,3131.8,0.0019859]
[1642667691104,0.00475635,3131.9,3131.8,2.72376294]
[1642667691402,0.00475635,3131.9,3131.8,0.0019859]
[1642667691601,0.13245635,3131.9,3131.8,0.0019859]
[1642667693809,0.00475635,3131.9,3131.8,0.0019859]
[1642667695654,0.13245635,3131.9,3131.8,0.0019859]
[1642667695853,3.48245635,3131.9,3131.8,0.0019859]
[1642667696054,3.94845635,3131.9,3131.8,0.0019859]
[1642667696255,2.65,3131.8,3131.4,0.3]
[1642667696455,0.1277,3131.7,3131.5,2.72160609]
[1642667696659,4.26473,3131.6,3131.5,0.00198589]
[1642667696855,2.05,3131.5,3130.8,3.02196707]
[1642667697060,0.466,3131.4,3130.9,2.72196707]
[1642667697256,0.466,3131.4,3130.9,2.72289496]
[1642667697257,0.46791423,3131.4,3130.9,2.72289496]
[1642667697455,0.00134581,3131.3,3130.9,2.72289496]
[1642667697656,0.12904581,3131.3,3130.9,2.72289496]
[1642667698308,0.12904581,3131.3,3130.9,0.00092789]
[1642667698500,0.12904581,3131.3,3130.9,2.72300274]
[1642667698703,0.12904581,3131.3,3130.3,1.75141552]
[1642667698704,5.416,3131.2,3130.3,1.75141552]
[1642667699006,1.59788,3130.9,3130.4,0.00284211]
[1642667699304,1.59788,3130.9,3130.1,1.62371552]
[1642667699305,0.5937,3130.8,3130.2,0.00397896]
[1642667700106,1.39264,3130.8,3130.1,0.00454738]
[1642667700307,1.39264,3130.8,3130.1,1.6282629]
[1642667700507,2.19162,3130.8,3130.1,1.9282629]
[1642667700707,2.19162,3130.8,3130.2,0.00397896]
[1642667700905,2.19153,3130.8,3130.2,0.00397896]
[1642667701507,5.17278283,3130.8,3130.2,1.62769448]
[1642667701705,5.17278283,3130.8,3130.2,0.30397896]
[1642667701907,5.17278283,3130.8,3130.3,0.00341054]
[1642667702147,5.17278283,3130.8,3130.3,0.30341054]
[1642667702351,5.17278283,3130.8,3130.1,0.00454738]
[1642667702949,5.07901704,3130.8,3130.2,1.62371552]
[1642667703148,5.07901704,3130.8,3130.2,0.3]
[1642667703348,5.07901704,3130.8,3130.3,0.00341054]
[1642667703549,5.07901704,3130.8,3130.3,0.30341054]
[1642667703750,5.07901704,3130.8,3130.3,0.3]
[1642667703950,5.07901704,3130.8,3130.2,0.00397896]
[1642667704654,5.07901704,3130.8,3130.2,0.30397896]
[1642667704856,5.07901704,3130.8,3130.2,0.3]
[1642667705055,5.07901704,3130.8,3130.3,0.00341054]